bitfinex-derivatives/quotes_ETHF0:USTF0_20241129
["timestamp","ask_amount","ask_price","bid_price","bid_amount"]
[1732862172263,1.03392835,3573.9,3573.3,13.14416815]
[1732862172463,1.03392835,3573.6,3573.3,4.39834879]
[1732862172657,2.57522835,3573.8,3573.5,0.27976]
[1732862172857,1.80142835,3573.8,3573.6,3.2078]
[1732862173057,0.7675,3573.8,3573.6,3.48755]
[1732862173254,2.08116835,3573.8,3573.6,3.2078]
[1732862173462,0.27975,3573.7,3573.6,3.2078]
[1732862173663,0.7586,3573.7,3573.6,3.2078]
[1732862173865,0.7586,3573.7,3573.6,6.28595]
[1732862174265,0.7586,3573.7,3573.6,3.2078]
[1732862175363,1.03835,3573.7,3573.6,3.2078]
[1732862175964,0.27976,3573.6,3573.4,40.8]
[1732862176472,1.31368835,3573.5,3573.4,40.8]
[1732862177371,1.03392835,3573.5,3573.4,40.8]
[1732862177567,1.31368835,3573.5,3573.4,40.8]
[1732862178573,1.03392835,3573.5,3573.4,40.8]
[1732862182065,1.03392835,3573.5,3573.4,41.07977]
[1732862182270,1.03392835,3573.5,3573.4,40.8]
[1732862184265,4.11208835,3573.5,3573.4,40.8]
[1732862184471,8.48738795,3573.5,3573.4,40.8]
[1732862184767,0.27981,3572.9,3572.6,4.67817879]
[1732862184982,3.83232835,3573.5,3572.4,9.80640869]
[1732862184983,2.2435,3572.8,3572.5,4.39834879]
[1732862185166,2.2435,3572.8,3572.7,0.27983]
[1732862185575,2.2435,3572.8,3572.7,41.07983]
[1732862186372,2.2435,3572.8,3572.7,40.8]
[1732862187071,6.35644835,3572.8,3572.7,40.8]
[1732862187276,7.3903767,3572.8,3572.7,40.8]
[1732862187477,12.82686179,3572.8,3572.7,40.8]
[1732862188173,0.27983,3572.7,3571.9,3.48768]
[1732862188373,1.31378835,3572.3,3572.0,0.27988]
[1732862188678,1.31378835,3572.3,3572.1,40.8]
[1732862188679,0.7817,3572.2,3572.1,40.8]
[1732862188876,2.55946,3572.2,3572.1,40.8]
[1732862191181,5.35866,3572.2,3572.1,40.8]
[1732862193277,0.27991,3571.6,3571.5,3.2078]
[1732862193672,0.2799,3571.7,3571.5,44.0078]
[1732862193879,1.5653,3571.6,3571.5,44.0078]
[1732862194090,2.3303,3571.6,3571.5,44.0078]
[1732862196182,2.3303,3571.6,3571.5,44.28772]
[1732862196773,2.3303,3571.6,3571.5,44.0078]
[1732862197481,2.3303,3571.6,3571.5,44.28772]
[1732862197679,0.7827,3571.6,3571.5,44.28772]
[1732862198079,10.10255829,3573.8,3571.6,0.27991]
[1732862198080,2.14052004,3572.4,3571.6,0.27991]
[1732862198385,0.7449,3572.3,3572.0,0.27988]
[1732862198584,0.7449,3572.3,3571.9,3.2078]
[1732862198585,1.4776,3572.3,3571.9,3.2078]
[1732862198784,1.4776,3572.3,3572.0,0.27988]
[1732862198979,1.4776,3572.3,3571.9,3.2078]
[1732862198980,1.4776,3572.3,3572.2,0.27986]
[1732862199183,0.7809,3572.4,3572.3,0.27986]
[1732862199381,0.7809,3572.4,3572.3,41.07986]
[1732862200084,0.7809,3572.4,3572.3,44.28766]
[1732862201082,2.88542004,3572.9,3572.3,44.0078]
[1732862201388,2.88542004,3572.9,3572.6,0.27983]
[1732862201389,0.7562,3572.8,3572.6,0.27983]
[1732862201586,0.7562,3572.8,3572.4,0.27985]
[1732862201790,0.7562,3572.8,3572.6,0.27983]
[1732862202176,0.7562,3572.8,3572.3,44.0078]
[1732862202381,0.7562,3572.8,3572.7,0.27983]
[1732862202881,0.7562,3572.8,3572.6,0.27983]
[1732862203281,0.7562,3572.8,3572.3,44.0078]
[1732862203578,0.7562,3572.8,3572.7,0.27983]
[1732862205282,0.7562,3572.8,3572.3,44.0078]
[1732862205283,1.03602,3572.8,3572.5,0.27983]
[1732862205484,0.7562,3572.8,3572.6,0.27983]
[1732862205680,0.7562,3572.8,3572.3,44.0078]
[1732862205884,0.7562,3572.8,3572.7,0.27983]
[1732862208392,0.7562,3572.8,3572.3,44.0078]
[1732862208687,0.7562,3572.8,3572.7,0.27983]
[1732862209085,2.14052004,3573.3,3573.1,0.27979]
[1732862209286,4.41452004,3573.3,3572.7,3.2078]
[1732862209492,4.41452004,3573.3,3572.9,0.27981]
[1732862209493,0.27979,3573.2,3572.9,0.27981]
[1732862209685,4.69430004,3573.3,3573.0,0.2798]
[1732862210491,4.41452004,3573.3,3573.1,0.27979]
[1732862210687,4.41452004,3573.3,3573.1,41.07979]
[1732862211095,4.69430004,3573.3,3573.1,40.8]
[1732862212097,4.41452004,3573.3,3573.1,40.8]
[1732862212393,1.03436081,3573.2,3573.1,40.8]
[1732862213193,1.31415081,3573.2,3573.1,40.8]
[1732862213496,1.31415081,3573.2,3572.7,3.2078]
[1732862213497,0.27979,3573.1,3572.8,0.27982]
[1732862213696,1.31418081,3572.9,3572.7,3.2078]
[1732862213894,1.31418081,3572.9,3572.8,40.8]
[1732862214100,0.27984,3572.6,3572.1,3.2078]
[1732862214395,1.5222,3572.5,3572.4,0.27985]
[1732862214591,1.5222,3572.5,3572.4,41.07985]
[1732862214996,1.5222,3572.5,3572.4,40.8]
[1732862215199,1.5222,3572.5,3572.4,41.07985]
[1732862216505,0.7556,3572.5,3572.4,43.87905]
[1732862216706,0.27981,3572.9,3572.7,0.27982]
[1732862216707,0.7633,3572.9,3572.7,0.27982]
[1732862216906,0.7633,3572.9,3572.4,43.5992]
[1732862216907,0.27978,3573.3,3573.0,0.2798]
[1732862217200,4.37045504,3574.1,3573.0,3.2078]
[1732862217403,2.90300753,3574.3,3573.7,3.2078]
[1732862217601,2.90300753,3574.3,3573.9,0.27973]
[1732862217602,0.7664,3574.0,3573.9,0.27973]
[1732862217804,0.7664,3574.0,3573.8,0.27973]
[1732862218104,0.7664,3574.0,3573.7,3.48754]
[1732862218309,0.7664,3574.0,3573.7,3.2078]
[1732862218502,1.04613,3574.0,3573.7,3.48754]
[1732862218704,0.7664,3574.0,3573.7,3.2078]
[1732862218898,0.7664,3574.0,3573.7,3.48754]
[1732862219295,0.7664,3574.0,3573.8,0.27974]
[1732862220001,0.7664,3574.0,3573.9,40.8]
[1732862220202,1.04612,3574.0,3573.9,40.8]
[1732862220408,3.84452,3574.0,3573.9,40.8]
[1732862220610,0.27974,3573.9,3573.7,3.2078]
[1732862220910,0.27973,3573.9,3573.7,3.2078]
[1732862221098,0.7664,3574.0,3573.7,3.2078]
[1732862221302,0.27974,3573.8,3573.7,3.2078]
[1732862221706,3.07814,3573.8,3573.7,3.2078]
[1732862221906,0.27974,3573.8,3573.7,3.2078]
[1732862222115,0.27974,3573.8,3573.0,40.8]
[1732862222116,2.7984,3573.8,3573.2,3.2078]
[1732862222410,2.13970753,3573.9,3573.3,0.27978]
[1732862222411,0.27976,3573.6,3573.3,0.27978]
[1732862222603,0.27976,3573.6,3573.2,3.2078]
[1732862222604,0.7477,3573.7,3573.2,3.2078]
[1732862222914,1.02745,3573.7,3573.4,0.27976]
[1732862223107,0.7477,3573.7,3573.2,3.2078]
[1732862223409,0.7477,3573.7,3573.3,0.27978]
[1732862223410,0.27976,3573.6,3573.3,0.27978]
[1732862224003,0.27976,3573.6,3573.4,0.27977]
[1732862224204,0.7477,3573.7,3573.2,3.2078]
[1732862224404,1.02745,3573.7,3573.4,0.27977]
[1732862224809,0.7477,3573.7,3573.6,3.2078]
[1732862225109,0.7664,3574.0,3573.9,0.27973]
[1732862225314,2.13970753,3574.8,3574.2,0.2797]
[1732862225315,1.03098,3574.6,3574.2,0.2797]
[1732862225612,1.75458,3574.6,3574.3,40.8]
[1732862226108,1.75458,3574.6,3574.2,3.2078]
[1732862226109,1.4749,3574.6,3574.2,3.2078]
[1732862226505,1.4749,3574.6,3574.3,40.8]
[1732862227107,1.4749,3574.6,3574.4,0.27969]
[1732862227310,1.4749,3574.6,3574.3,41.0797]
[1732862227615,1.75458,3574.6,3574.3,41.0797]
[1732862227812,1.4749,3574.6,3574.3,41.0797]
[1732862228012,0.727,3574.5,3574.3,41.0797]
[1732862228515,0.727,3574.5,3574.4,0.27969]
[1732862229003,0.727,3574.5,3574.3,40.8]
[1732862229209,0.727,3574.5,3574.3,41.07969]
[1732862229410,0.727,3574.5,3574.4,0.27969]
[1732862230910,0.727,3574.5,3574.3,40.8]
[1732862231110,0.727,3574.5,3573.8,3.2078]
[1732862231111,4.93730753,3574.4,3573.8,3.2078]
[1732862231314,4.93730753,3574.4,3573.8,3.48754]
[1732862231315,0.27972,3574.1,3573.8,3.48754]
[1732862231522,1.5113,3574.0,3573.8,3.48754]
[1732862231716,1.5113,3574.0,3573.8,41.07974]
[1732862232016,0.7453,3573.9,3573.8,44.28754]
[1732862232210,0.7453,3573.9,3573.8,44.0078]
[1732862232408,0.7453,3573.9,3573.8,44.28754]
[1732862232615,1.02503,3573.9,3573.8,40.8]
[1732862232810,0.27974,3573.8,3573.4,3.48757]
[1732862233008,0.7453,3573.9,3573.4,3.2078]
[1732862233211,0.7453,3573.9,3573.6,0.27975]
[1732862233212,1.02504,3573.9,3573.6,0.27975]
[1732862233417,0.7453,3573.9,3573.5,40.8]
[1732862233713,0.7453,3573.9,3573.6,0.27975]
[1732862233917,0.7453,3573.9,3573.7,0.27975]
[1732862234322,0.7453,3573.9,3573.6,0.27975]
[1732862234912,0.7453,3573.9,3573.7,0.27974]
[1732862235112,0.7453,3573.9,3573.6,0.27975]
[1732862235316,0.7453,3573.9,3573.5,41.07976]
[1732862235317,1.02503,3573.9,3573.5,41.07976]
[1732862235517,0.7453,3573.9,3573.5,40.8]
[1732862235719,0.27975,3573.7,3573.5,40.8]
[1732862236020,0.27975,3573.6,3573.5,40.8]
[1732862237311,5.21785753,3573.6,3573.5,40.8]
[1732862237922,0.27979,3573.2,3572.9,3.48761]
[1732862238222,1.5469,3573.1,3572.9,3.48761]
[1732862238425,2.58999,3573.1,3573.0,40.8]
[1732862238918,2.3102,3573.1,3573.0,40.8]
[1732862239220,2.58999,3573.1,3573.0,40.8]
[1732862241524,5.38839,3573.1,3573.0,40.8]
[1732862242321,8.65263948,3573.1,3573.0,40.8]
[1732862243128,5.38839,3573.1,3573.0,40.8]
[1732862244020,8.65535802,3573.1,3573.0,40.8]
[1732862244221,5.38839,3573.1,3573.0,40.8]
[1732862245322,8.65627177,3573.1,3573.0,40.8]
[1732862245626,5.38839,3573.1,3573.0,40.8]
[1732862245826,8.65627177,3573.1,3573.0,40.8]
[1732862246919,5.38839,3573.1,3573.0,40.8]
[1732862248224,8.6558173,3573.1,3573.0,40.8]
[1732862248533,5.1086,3573.1,3572.0,0.27988]
[1732862248830,0.27986,3572.3,3572.0,0.27988]
[1732862249130,2.13970753,3572.7,3572.1,40.8]
[1732862250224,0.27986,3572.3,3572.1,40.8]
[1732862250430,0.27985,3572.5,3572.2,0.27986]
[1732862250728,0.27984,3572.5,3572.2,0.27986]
[1732862252325,2.13970753,3572.7,3572.1,40.8]
[1732862252626,0.27984,3572.6,3572.3,0.27986]
[1732862252829,2.13970753,3572.7,3572.3,0.27986]
[1732862253030,0.27985,3572.5,3572.2,0.27986]
[1732862254133,2.13970753,3572.7,3572.1,40.8]
[1732862254330,2.41953753,3572.7,3572.4,0.27984]
[1732862254528,1.05229,3573.1,3572.9,0.27981]
[1732862254731,0.7725,3573.1,3572.9,3.2078]
[1732862254923,1.0523,3573.1,3572.9,3.2078]
[1732862255127,1.0523,3573.1,3573.0,40.8]
[1732862255728,3.19200753,3573.1,3573.0,40.8]
[1732862256431,3.19200753,3573.1,3572.5,3.2078]
[1732862256432,2.91220753,3573.1,3572.5,3.2078]
[1732862256625,0.27983,3572.7,3572.5,3.2078]
[1732862256929,0.27983,3572.7,3572.6,40.8]
[1732862258436,0.27982,3572.8,3572.6,40.8]
[1732862259139,0.27983,3572.7,3572.6,40.8]
[1732862259438,0.7239,3572.7,3572.6,40.8]
[1732862259637,0.7239,3572.7,3572.6,41.07983]
[1732862260536,0.7239,3572.7,3572.6,40.8]
[1732862260736,0.7239,3572.7,3572.6,41.07983]
[1732862261539,2.91220753,3573.1,3572.6,40.8]
[1732862261739,0.27981,3573.0,3572.8,0.27981]
[1732862261935,2.91220753,3573.1,3572.5,3.2078]
[1732862262135,3.19200753,3573.1,3572.9,0.2798]
[1732862262640,3.19200753,3573.1,3573.0,40.8]
[1732862263237,0.27976,3573.6,3573.3,0.27977]
[1732862263440,0.27976,3573.6,3573.4,0.27977]
[1732862263746,3.977,3573.7,3573.4,0.27977]
[1732862264040,4.25675,3573.7,3573.4,0.27977]
[1732862264430,3.977,3573.7,3573.0,40.8]
[1732862264637,0.27978,3573.4,3573.1,0.27979]
[1732862264835,0.27977,3573.5,3573.2,0.27978]
[1732862265140,2.41947753,3573.5,3573.2,0.27978]
[1732862265637,2.13970753,3573.5,3573.3,0.27977]
[1732862268240,4.25675,3573.7,3573.0,40.8]
[1732862268438,4.25675,3573.7,3573.4,0.27977]
[1732862268639,0.7692,3573.7,3573.4,3.2078]
[1732862268839,0.7692,3573.7,3573.6,0.27975]
[1732862269147,0.7543,3573.8,3573.6,0.27975]
[1732862269743,1.03404,3573.8,3573.6,0.27975]
[1732862270045,1.03404,3573.8,3573.5,0.27976]
[1732862270742,1.03404,3573.8,3573.6,0.27975]
[1732862270940,0.7543,3573.8,3573.6,0.27975]
[1732862271138,0.7543,3573.8,3573.4,3.2078]
[1732862271342,0.7543,3573.8,3573.6,0.27975]
[1732862271644,1.03404,3573.8,3573.5,0.27976]
[1732862271841,0.27975,3573.7,3573.5,0.27976]
[1732862272039,0.7543,3573.8,3573.4,3.2078]
[1732862272240,1.03404,3573.8,3573.6,0.27975]
[1732862272940,1.03404,3573.8,3573.4,3.2078]
[1732862273342,1.03404,3573.8,3573.5,0.27976]
[1732862273841,1.03404,3573.8,3573.4,3.2078]
[1732862273842,0.7543,3573.8,3573.4,3.2078]
[1732862274041,0.7543,3573.8,3573.7,0.27975]
[1732862274547,0.7543,3573.8,3573.6,0.27975]
[1732862274939,1.03404,3573.8,3573.6,0.27975]
[1732862275452,0.7543,3573.8,3573.7,0.27975]
[1732862276150,1.78839719,3573.8,3573.6,0.27975]
[1732862277137,1.78839719,3573.8,3573.4,3.2078]
[1732862277441,1.03409719,3573.5,3573.4,3.48757]
[1732862281557,1.03409719,3573.5,3573.4,3.2078]
[1732862281855,1.03409719,3573.5,3573.4,3.48757]
[1732862282152,1.76589719,3573.5,3573.4,3.48757]
[1732862283950,1.76589719,3573.5,3573.4,3.2078]
[1732862283951,2.04565719,3573.5,3573.4,3.2078]
[1732862284256,2.04565719,3573.5,3573.0,40.8]
[1732862284257,0.27979,3573.1,3573.0,40.8]
[1732862284947,1.4721,3573.1,3573.0,40.8]
[1732862285149,1.75189,3573.1,3573.0,40.8]
[1732862285554,1.4721,3573.1,3573.0,41.0798]
[1732862285749,1.03409719,3573.3,3573.2,0.27979]
[1732862286054,1.03409719,3573.3,3573.2,3.48759]
[1732862286260,1.76589719,3573.5,3573.2,6.28599]
[1732862286549,1.76589719,3573.5,3573.4,0.27977]
[1732862287145,1.76589719,3573.5,3573.4,40.8]
[1732862287641,1.76589719,3573.5,3573.4,41.07977]
[1732862289651,1.76589719,3573.5,3573.4,40.8]
[1732862289853,1.76589719,3573.5,3573.4,41.07977]
[1732862290755,1.4467,3573.6,3573.4,43.5984]
[1732862291055,2.18225695,3574.1,3573.5,3.83249719]
[1732862291255,2.2556,3574.1,3574.0,0.27972]
[1732862291445,3.28969719,3574.1,3573.8,3.2078]
[1732862291650,4.43785695,3574.1,3573.8,3.2078]
[1732862291846,2.2556,3574.1,3573.8,3.2078]
[1732862292048,1.03409719,3573.9,3573.8,3.48753]
[1732862292451,1.03409719,3573.9,3573.8,3.2078]
[1732862292858,1.03409719,3573.9,3573.8,3.48754]
[1732862293153,1.03409719,3573.9,3573.8,3.2078]
[1732862293554,1.03409719,3573.9,3573.8,3.48754]
[1732862298650,1.03409719,3573.9,3573.8,3.2078]
[1732862298852,1.31382719,3573.9,3573.8,3.2078]
[1732862299054,1.03409719,3573.9,3573.7,0.27975]
[1732862299364,3.49608414,3573.9,3573.6,0.27975]
[1732862299656,0.27974,3573.8,3573.5,0.27976]
[1732862299857,0.27974,3573.8,3573.6,0.27975]
[1732862300056,3.49608414,3573.9,3573.6,0.27975]
[1732862300256,3.49608414,3573.9,3573.5,0.27976]
[1732862300257,0.27974,3573.8,3573.5,0.27976]
[1732862300454,2.18225695,3573.8,3573.7,0.27975]
[1732862300662,2.18225695,3573.8,3573.4,44.0078]
[1732862300663,3.21635414,3573.9,3573.8,0.27974]
[1732862300964,3.21635414,3573.9,3573.7,0.27974]
[1732862301160,3.49609414,3573.9,3573.6,0.27975]
[1732862301561,2.18225695,3573.8,3573.4,44.0078]
[1732862301762,1.31385719,3573.6,3573.4,44.0078]
[1732862302057,1.4772,3573.5,3573.4,44.0078]
[1732862302253,2.2301,3573.5,3573.4,44.28757]
[1732862302959,0.7179,3573.5,3573.4,44.28757]
[1732862303261,0.7179,3573.5,3573.4,47.08597]
[1732862305461,0.7179,3573.5,3573.4,51.46982552]
[1732862305662,0.7179,3573.5,3573.4,47.08597]
[1732862306453,0.7179,3573.5,3573.4,51.46982552]
[1732862306661,0.7179,3573.5,3573.4,44.28757]
[1732862307364,0.7179,3573.5,3573.4,7.87142552]
[1732862308371,2.90015695,3573.5,3573.4,7.87142552]
[1732862311663,0.7179,3573.5,3573.4,7.87142552]
[1732862311864,0.7179,3573.5,3573.4,3.48757]
[1732862312259,2.90901432,3573.5,3573.4,7.87142552]
[1732862312466,2.90901432,3573.5,3573.4,7.88951406]
[1732862312865,2.90901432,3573.5,3573.4,3.2078]
[1732862312866,0.7179,3573.5,3573.4,3.2078]
[1732862313170,3.98542071,3573.5,3573.4,3.2078]
[1732862313370,0.7179,3573.5,3573.4,3.2078]
[1732862315265,0.99766,3573.5,3573.4,3.2078]
[1732862316068,0.7179,3573.5,3573.2,45.20194406]
[1732862316269,1.31387719,3573.3,3573.2,45.20194406]
[1732862316468,1.31387719,3573.3,3573.2,40.8]
[1732862316670,5.37677679,3573.3,3573.2,40.8]
[1732862317061,2.09027719,3573.3,3573.2,40.8]
[1732862317265,5.37652218,3573.3,3573.2,40.8]
[1732862317872,4.88867719,3573.3,3573.2,40.8]
[1732862318172,0.27982,3572.8,3572.7,2.24076509]
[1732862318373,4.59879871,3572.8,3572.7,2.24076509]
[1732862318572,1.31391719,3572.8,3572.7,40.8]
[1732862318785,5.69375922,3572.8,3572.7,40.8]
[1732862319069,2.03671719,3572.8,3572.7,40.8]
[1732862319275,4.83591719,3572.8,3572.7,40.8]
[1732862321173,8.11716471,3572.8,3572.7,40.8]
[1732862321981,4.83591719,3572.8,3572.7,40.8]
[1732862322472,5.87001438,3572.8,3572.7,40.8]
[1732862322671,4.83591719,3572.8,3572.7,40.8]
[1732862323074,5.87001438,3572.8,3572.7,40.8]
[1732862323784,4.83591719,3572.8,3572.7,40.8]
[1732862324281,8.11415096,3572.8,3572.7,40.8]
[1732862324675,9.14824815,3572.8,3572.7,40.8]
[1732862327069,8.11415096,3572.8,3572.7,40.8]
[1732862327274,9.14824815,3572.8,3572.7,40.8]
[1732862328181,5.87001438,3572.8,3572.7,40.8]
[1732862328376,12.35604815,3572.8,3572.7,40.8]
[1732862328579,18.17783641,3572.8,3571.5,3.2078]
[1732862328880,1.31400719,3571.6,3571.5,3.2078]
[1732862329679,1.31400719,3571.6,3571.5,44.0078]
[1732862336581,0.27991,3571.6,3571.5,44.0078]
[1732862336883,1.31400719,3571.6,3571.5,44.0078]
[1732862340386,0.7186,3571.9,3571.5,44.0078]
[1732862340586,0.7186,3571.9,3571.8,0.27989]
[1732862340587,1.03409719,3571.9,3571.8,0.27989]
[1732862341491,1.03409719,3571.9,3571.6,0.7766]
[1732862341492,1.03409719,3572.1,3572.0,0.27987]
[1732862341693,1.31397719,3572.1,3571.8,0.27989]
[1732862341892,1.03409719,3571.9,3571.7,0.2799]
[1732862342087,1.03409719,3571.9,3571.6,0.7766]
[1732862342088,0.2799,3571.8,3571.6,1.05651]
[1732862342292,0.7406,3572.2,3571.6,0.7766]
[1732862342293,1.03409719,3571.7,3571.6,0.7766]
[1732862342490,1.03409719,3571.7,3571.6,1.04071]
[1732862342793,1.03409719,3571.7,3571.6,3.5608]
[1732862343596,2.56349719,3571.7,3571.5,44.0078]
[1732862343900,2.84340719,3571.7,3571.5,44.0078]
[1732862344193,2.56349719,3571.7,3571.5,44.0078]
[1732862344392,1.03409719,3571.7,3571.6,1.06231]
[1732862347001,1.03409719,3571.7,3571.6,3.5824]
[1732862347200,1.03409719,3571.7,3571.6,0.7824]
[1732862347405,1.5294,3572.2,3571.6,0.7824]
[1732862347600,1.03409719,3571.8,3571.6,0.7824]
[1732862348001,0.2799,3571.7,3571.6,0.7824]
[1732862348201,1.0312,3571.7,3571.6,0.7824]
[1732862349399,0.27991,3571.6,3571.5,44.0078]
[1732862350005,1.00741,3571.6,3571.5,44.0078]
[1732862352702,2.04150719,3571.6,3571.5,44.0078]
[1732862353301,1.00741,3571.6,3571.5,44.0078]
[1732862355410,1.00741,3571.6,3571.5,40.8]
[1732862361222,3.19076262,3571.6,3571.5,40.8]
[1732862363213,1.00741,3571.6,3571.5,40.8]
[1732862364119,4.28243894,3571.6,3571.5,40.8]
[1732862365618,0.27993,3571.4,3571.3,3.2078]
[1732862365923,1.31402719,3571.4,3571.3,3.2078]
[1732862366215,1.31402719,3571.4,3571.3,44.0078]
[1732862366622,4.59414251,3571.4,3571.3,44.0078]
[1732862369220,4.59414251,3571.4,3571.3,40.8]
[1732862370216,1.31402719,3571.4,3571.3,40.8]
[1732862374113,0.27993,3571.4,3571.3,40.8]
[1732862374416,4.31999828,3571.4,3571.3,40.8]
[1732862374613,4.59992828,3571.4,3571.3,40.8]
[1732862375013,3.28590109,3571.4,3571.3,40.8]
[1732862375316,3.2249366,3571.4,3571.3,43.87994]
[1732862375522,1.03409719,3571.4,3571.3,48.28188406]
[1732862375711,1.03409719,3571.4,3571.3,49.04810524]
[1732862376117,1.03409719,3571.4,3571.3,55.62388852]
[1732862377122,1.03409719,3571.4,3571.3,49.04810524]
[1732862377417,1.03409719,3571.4,3571.3,55.62388852]
[1732862378816,2.19083941,3571.7,3571.5,0.27992]
[1732862379017,8.68260254,3572.3,3571.7,0.2799]
[1732862379018,2.19083941,3571.9,3571.7,0.2799]
[1732862379225,1.03409719,3572.2,3571.6,11.17493132]
[1732862379226,2.19083941,3572.0,3571.8,4.4176423]
[1732862379518,2.19083941,3572.1,3572.0,0.27988]
[1732862379829,4.31999828,3572.2,3572.0,3.80648]
[1732862380021,4.59985828,3572.2,3572.0,1.00728]
[1732862380217,4.59985828,3572.2,3572.1,40.8]
[1732862380918,1.31395719,3572.2,3572.1,40.8]
[1732862381326,4.60001063,3572.2,3572.1,40.8]
[1732862382230,4.32015063,3572.2,3572.1,40.8]
[1732862382720,1.03409719,3572.2,3572.1,40.8]
[1732862383320,1.03409719,3572.2,3572.1,41.07987]
[1732862383719,3.28605344,3572.3,3572.1,43.5992]
[1732862383919,1.03409719,3572.3,3572.2,0.27986]
[1732862384229,3.22415737,3572.3,3572.2,0.29486]
[1732862384820,2.19006018,3572.3,3572.2,3.09406]
[1732862385025,3.22415737,3572.3,3572.1,40.8]
[1732862385223,0.27986,3572.2,3572.1,40.8]
[1732862385422,5.01821737,3572.3,3572.1,43.5992]
[1732862385619,5.01821737,3572.3,3572.1,40.8]
[1732862386823,5.01821737,3572.3,3572.1,41.07987]
[1732862387023,4.73835737,3572.3,3572.1,40.8]
[1732862387224,4.73835737,3572.3,3572.2,0.27986]
[1732862387225,2.54829719,3572.3,3572.2,0.27986]
[1732862387526,2.54829719,3572.3,3572.1,41.07987]
[1732862388428,2.54829719,3572.3,3572.2,0.27986]
[1732862388625,2.82815719,3572.3,3572.1,40.8]
[1732862388825,2.54829719,3572.3,3572.1,40.8]
[1732862389333,2.82815719,3572.3,3572.1,40.8]
[1732862389626,2.82815719,3572.3,3572.1,41.07987]
[1732862390733,0.27986,3572.2,3572.1,40.8]
[1732862391429,2.46992018,3572.2,3572.1,40.8]
[1732862392929,5.26912018,3572.2,3572.1,40.8]
[1732862393225,0.27986,3572.2,3572.1,40.8]
[1732862393431,3.56591344,3572.2,3572.1,40.8]
[1732862393826,6.77371344,3572.2,3572.1,40.8]
[1732862394031,6.28686,3572.2,3572.1,40.8]
[1732862394328,10.65356525,3572.2,3572.1,40.8]
[1732862394527,10.37370525,3572.2,3571.4,3.48773]
[1732862394728,1.03409719,3571.5,3571.4,3.2078]
[1732862394924,1.03409719,3571.5,3571.4,44.0078]
[1732862395120,1.03409719,3571.5,3571.4,44.28773]
[1732862395121,2.51649719,3571.5,3571.4,44.28773]
[1732862395727,2.51649719,3571.5,3571.4,44.0078]
[1732862395928,2.79641719,3571.5,3571.4,44.0078]
[1732862396526,2.79641719,3571.5,3571.4,40.8]
[1732862397126,1.76232,3571.5,3571.4,40.8]
[1732862398933,2.51649719,3571.5,3571.4,40.8]
[1732862399132,2.51649719,3571.5,3571.4,41.07993]
[1732862399340,2.51649719,3571.5,3571.4,40.8]
[1732862400941,1.03409719,3571.5,3571.4,43.87993]
[1732862401628,3.22439719,3571.8,3571.4,43.6]
[1732862401827,2.50469719,3571.8,3571.7,3.4877]
[1732862402033,1.75519719,3571.8,3571.7,3.4877]
[1732862402233,1.75519719,3571.8,3571.7,47.0877]
[1732862402838,3.22110486,3572.1,3571.7,46.8078]
[1732862403037,2.18700767,3572.1,3572.0,0.27988]
[1732862403338,3.22110486,3572.4,3572.3,0.27986]
[1732862403936,3.22110486,3572.4,3572.2,3.2078]
[1732862404132,3.22110486,3572.4,3572.3,0.27986]
[1732862404440,0.27984,3572.5,3572.2,3.2078]
[1732862404441,2.18700767,3572.5,3572.4,0.27985]
[1732862404642,1.03409719,3572.5,3572.2,3.2078]
[1732862404945,1.03409719,3572.5,3572.4,0.27985]
[1732862405242,3.62780767,3572.6,3572.4,40.8]
[1732862405438,1.03409719,3572.7,3572.6,0.27983]
[1732862405641,1.03409719,3572.7,3572.6,3.48763]
[1732862405838,2.18700767,3572.9,3572.8,0.27982]
[1732862406041,3.22110486,3572.9,3572.8,0.27982]
[1732862406438,1.03409719,3572.9,3572.8,0.27982]
[1732862406845,1.03409719,3572.9,3572.6,3.2078]
[1732862407038,2.18700767,3573.0,3572.6,3.2078]
[1732862407039,1.31392719,3572.7,3572.6,3.2078]
[1732862407241,1.03409719,3572.7,3572.6,3.2078]
[1732862407645,1.03409719,3572.7,3572.6,3.48763]
[1732862410045,1.03409719,3572.7,3572.6,3.2078]
[1732862410548,1.03409719,3572.7,3572.6,3.48763]
[1732862411440,1.03409719,3572.7,3572.6,3.2078]
[1732862412036,1.31392719,3572.7,3572.6,3.2078]
[1732862412240,1.03409719,3572.7,3572.6,3.2078]
[1732862412441,1.03409719,3572.7,3572.6,3.48763]
[1732862415246,1.03409719,3573.0,3572.9,0.27981]
[1732862416542,2.2302,3573.1,3573.0,0.2798]
[1732862416744,3.26429719,3573.1,3573.0,0.2798]
[1732862417139,2.52969719,3573.1,3573.0,0.2798]
[1732862417346,2.52969719,3573.1,3573.0,3.2078]
[1732862417746,2.52969719,3573.1,3572.6,3.2078]
[1732862418048,1.03409719,3572.7,3572.6,3.48763]
[1732862419344,1.03409719,3573.0,3572.8,0.27981]
[1732862420046,1.03409719,3573.0,3572.6,3.2078]
[1732862420247,1.31389719,3573.0,3572.7,0.27982]
[1732862421853,1.03409719,3573.0,3572.7,0.27982]
[1732862422353,1.03409719,3573.0,3572.6,3.2078]
[1732862422550,1.31390719,3573.0,3572.7,0.27982]
[1732862424453,1.31390719,3573.0,3572.8,0.27981]
[1732862424454,1.03409719,3573.0,3572.8,0.27981]
[1732862424653,1.03409719,3573.0,3572.6,3.2078]
[1732862424843,1.03409719,3573.0,3572.7,0.27982]
[1732862424844,1.31390719,3573.0,3572.7,0.27982]
[1732862425249,0.27981,3572.9,3572.7,0.27982]
[1732862425856,1.31390719,3573.0,3572.7,0.27982]
[1732862426052,0.27981,3572.9,3572.7,0.27982]